Workbook

Sheet 最尤法
A1: JIS R 3206 附属書JB 計算シート ver5 | J1: =TEXT(TODAY(),"yyyy/mm/dd") -> 2024/08/22
A2: 二母数ワイブル分布，最尤法，95%信頼区間，5%破損確率 | J2: User: Ogura, MOBILE-PC01
A3: JIS R 1625:2010 ファインセラミックスの強さデータのワイブル統計解析法
B4: n= | C4: 20
B5: σave= | C5: 155.6 | G5: 式JB.1より | H5: mt= | I5: =C6 -> 21.48226007
B6: m= | C6: 21.48226007 | D6: ←ソルバー機能でこれを求める。 | G6: 式JB.2より | H6: βt= | I6: =(D8/C4)^(1/C6)*C5 -> 159.4445678
B7: L= | C7: =C4/C6+C8-C4*E8/D8 -> 1.643158498e-09 | D7: ←ソルバー機能でゼロを目指す。 | G7: 表JB.1より | H7: q0.975= | I7: =qt("q0.975",$C$4) -> 1.548073778 | L7: バイアス補正用
B8: Σ= | C8: =SUM(C10:C1048576) -> 100.917522 | D8: =SUM(D10:D1048576) -> 33.78662834 | E8: =SUM(E10:E1048576) -> 172.0559092 | G8: 表JB.2より | H8: t0.975= | I8: =qt("t0.975",$C$4) -> 0.5099119863 | L8: =SUM(L10:L1048576) -> 31.61445126
B9: σi | C9: ln σi | D9: (σi/σave)^m | E9: (σi/σave)^m * ln σi | G9: 式JB.3より | H9: ｍL= | I9: =I5/I7 -> 13.87676762 | L9: (σi/σave)^m
B10: 157 | C10: =LN(B10) -> 5.056245805 | D10: =(B10/$C$5)^$C$6 -> 1.21218045 | E10: =C10*D10 -> 6.129082315 | G10: 式JB.4より | H10: βL= | I10: =I6*EXP(-I8/I5) -> 155.704488 | L10: =($B10/$C$5)^$I$14 -> 1.195897467
B11: 170 | C11: =LN(B11) -> 5.135798437 | D11: =(B11/$C$5)^$C$6 -> 6.695201571 | E11: =C11*D11 -> 34.38520577 | G11: 式JB.5より | H11: σ0.05= | I11: =I10*(LN(1/(1-0.05)))^(1/I9) -> 125.7026308 | L11: =($B11/$C$5)^$I$14 -> 5.857695624
B12: 152 | C12: 5.023880521 | D12: 0.6047992486 | E12: 3.038439164 | L12: 0.6265564178
B13: 150 | C13: 5.010635294 | D13: 0.4550281006 | E13: 2.279979861 | G13: バイアス補正 | H13: Bn= | I13: =biasCorr(C4) -> 0.9297173531 | L13: 0.4809192896
B14: 166 | C14: 5.111987788 | D14: 4.01438652 | E14: 20.52149487 | H14: m= | I14: =I13*I5 -> 19.97242997 | L14: 3.640786662
B15: 155 | C15: 5.043425117 | D15: 0.9203542758 | E15: 4.641737871 | H15: β= | I15: =(L8/C4)^(1/I14)*C5 -> 159.2084449 | L15: 0.9257385942
B16: 161 | C16: 5.081404365 | D16: 2.081072704 | E16: 10.57477192 | L16: 1.976592678
B17: 137 | C17: 4.919980926 | D17: 0.0649032994 | E17: 0.3193229951 | L17: 0.07865816487
B18: 145 | C18: 4.976733742 | D18: 0.2196591939 | E18: 1.093185322 | L18: 0.2443503588
B19: 154 | C19: 5.036952602 | D19: 0.8008826552 | E19: 4.034007974 | L19: 0.8134789548
B20: 160 | C20: 5.075173815 | D20: 1.820365297 | E20: 9.23867029 | L20: 1.745315382
B21: 165 | C21: 5.105945474 | D21: 3.525710471 | E21: 18.00208542 | L21: 3.226894023
B22: 150 | C22: 5.010635294 | D22: 0.4550281006 | E22: 2.279979861 | L22: 0.4809192896
B23: 166 | C23: 5.111987788 | D23: 4.01438652 | E23: 20.52149487 | L23: 3.640786662
B24: 153 | C24: 5.030437921 | D24: 0.6962886953 | E24: 3.502637057 | L24: 0.7142307189
B25: 160 | C25: 5.075173815 | D25: 1.820365297 | E25: 9.23867029 | L25: 1.745315382
B26: 146 | C26: 4.983606622 | D26: 0.2546072615 | E26: 1.268862434 | L26: 0.2803030088
B27: 164 | C27: 5.099866428 | D27: 3.094079105 | E27: 15.77939015 | L27: 2.857956188
B28: 153 | C28: 5.030437921 | D28: 0.6962886953 | E28: 3.502637057 | L28: 0.7142307189
B29: 148 | C29: 4.997212274 | D29: 0.3410408834 | E29: 1.704253689 | L29: 0.3678256782
L30: 0
L31: 0
L32: 0
L33: 0
L34: 0
L35: 0
L36: 0
L37: 0
L38: 0
L39: 0
L40: 0

Sheet 表JB1,2 (hidden)
B1: q | C1: q | D1: q | E1: q | F1: t | G1: t | H1: t | I1: t
A2: N | B2: 0.025 | C2: 0.05 | D2: 0.95 | E2: 0.975 | F2: 0.025 | G2: 0.05 | H2: 0.95 | I2: 0.975
A3: 5 | B3: 0.6181278339 | C3: 0.6845915018 | D3: 2.835763155 | E3: 3.435659128 | F3: -1.665977607 | G3: -1.248891823 | H3: 1.092315211 | I3: 1.433573878
A4: 6 | B4: 0.6333095156 | C4: 0.6955554412 | D4: 2.424724346 | E4: 2.855378118 | F4: -1.303773742 | G4: -1.015408551 | H4: 0.9308817319 | I4: 1.190322616
A5: 7 | B5: 0.6517198943 | C5: 0.7086755874 | D5: 2.183752406 | E5: 2.513228602 | F5: -1.111866371 | G5: -0.8778687463 | H5: 0.8247726069 | I5: 1.053685878
A6: 8 | B6: 0.6644758111 | C6: 0.7193174108 | D6: 2.023728293 | E6: 2.307107536 | F6: -0.9854643128 | G6: -0.7829704948 | H6: 0.749188143 | I6: 0.9451270086
A7: 9 | B7: 0.6788845727 | C7: 0.7297827641 | D7: 1.905517927 | E7: 2.143287772 | F7: -0.8972243395 | G7: -0.7189430131 | H7: 0.686869919 | I7: 0.8624723122
A8: 10 | B8: 0.6903899055 | C8: 0.7385019994 | D8: 1.823368785 | E8: 2.042325951 | F8: -0.8174777759 | G8: -0.6619819387 | H8: 0.6448031283 | I8: 0.8031987322
A9: 11 | B9: 0.6977935015 | C9: 0.7464368087 | D9: 1.755905598 | E9: 1.95027102 | F9: -0.7679059764 | G9: -0.6215679666 | H9: 0.6058083548 | I9: 0.7533322071
A10: 12 | B10: 0.7053390623 | C10: 0.7507073322 | D10: 1.683689283 | E10: 1.853787257 | F10: -0.7112938426 | G10: -0.5831245499 | H10: 0.5685656155 | I10: 0.7015936058
A11: 13 | B11: 0.7151287972 | C11: 0.7604111959 | D11: 1.644570617 | E11: 1.800018381 | F11: -0.6785037464 | G11: -0.5563786328 | H11: 0.5428810391 | I11: 0.6697569008
A12: 14 | B12: 0.7182591539 | C12: 0.7625502138 | D12: 1.601676057 | E12: 1.743677031 | F12: -0.6348454625 | G12: -0.5222387348 | H12: 0.5196665455 | I12: 0.6356727081
A13: 15 | B13: 0.7277204535 | C13: 0.7701382036 | D13: 1.568052287 | E13: 1.703637661 | F13: -0.6125366482 | G13: -0.5037843241 | H13: 0.4983711563 | I13: 0.6129063679
A14: 16 | B14: 0.7345416991 | C14: 0.7755688278 | D14: 1.537184863 | E14: 1.663112426 | F14: -0.5925634914 | G14: -0.4882321228 | H14: 0.477879402 | I14: 0.5883128359
A15: 17 | B15: 0.7395816263 | C15: 0.7794977914 | D15: 1.516597785 | E15: 1.637823791 | F15: -0.5619921327 | G15: -0.4655152365 | H15: 0.4627416167 | I15: 0.565880544
A16: 18 | B16: 0.7445663839 | C16: 0.7848621005 | D16: 1.492691604 | E16: 1.60660926 | F16: -0.5403130906 | G16: -0.4500286581 | H16: 0.4488088769 | I16: 0.5498853034
A17: 19 | B17: 0.7500104349 | C17: 0.7884299469 | D17: 1.471432804 | E17: 1.57938173 | F17: -0.5269394301 | G17: -0.4380305553 | H17: 0.4298316775 | I17: 0.5250191557
A18: 20 | B18: 0.7542402354 | C18: 0.7917927937 | D18: 1.448229302 | E18: 1.548073778 | F18: -0.506883457 | G18: -0.4192127721 | H18: 0.4179052355 | I18: 0.5099119863
A19: 22 | B19: 0.7628275271 | C19: 0.8007187937 | D19: 1.422785953 | E19: 1.516699759 | F19: -0.481777366 | G19: -0.4003252577 | H19: 0.3991401537 | I19: 0.4846509445
A20: 24 | B20: 0.7710171307 | C20: 0.8063497237 | D20: 1.389007539 | E20: 1.477234124 | F20: -0.4537816607 | G20: -0.3769106597 | H20: 0.3762654734 | I20: 0.4576097739
A21: 26 | B21: 0.7766536353 | C21: 0.8114399845 | D21: 1.370543682 | E21: 1.452205641 | F21: -0.4339875538 | G21: -0.361157687 | H21: 0.3631788442 | I21: 0.4399728695
A22: 28 | B22: 0.7832571899 | C22: 0.8166052829 | D22: 1.349499123 | E22: 1.42673192 | F22: -0.4152952805 | G22: -0.3474050036 | H22: 0.3472508567 | I22: 0.4213478873
A23: 30 | B23: 0.7865240728 | C23: 0.8203544158 | D23: 1.337120514 | E23: 1.412012701 | F23: -0.3995688684 | G23: -0.3344768439 | H23: 0.3340056556 | I23: 0.4062135918
A24: 32 | B24: 0.7930361041 | C24: 0.8253646401 | D24: 1.321398759 | E24: 1.393149866 | F24: -0.3855830507 | G24: -0.3232606864 | H24: 0.322800819 | I24: 0.3913907658
A25: 34 | B25: 0.7991673597 | C25: 0.8298802217 | D25: 1.30753031 | E25: 1.372617827 | F25: -0.3720745506 | G25: -0.311779583 | H25: 0.3101821308 | I25: 0.3753981011
A26: 36 | B26: 0.8018472717 | C26: 0.8328872528 | D26: 1.294762842 | E26: 1.356896336 | F26: -0.3578551852 | G26: -0.3006158853 | H26: 0.3001439199 | I26: 0.3633887525
A27: 38 | B27: 0.8065650453 | C27: 0.8367157239 | D27: 1.282833838 | E27: 1.344103466 | F27: -0.3489938226 | G27: -0.292405717 | H27: 0.2931896818 | I27: 0.354210543
A28: 40 | B28: 0.80958915 | C28: 0.8396845287 | D28: 1.274503856 | E28: 1.330538892 | F28: -0.3414380449 | G28: -0.2861960397 | H28: 0.287042012 | I28: 0.3444985994
A29: 42 | B29: 0.815220817 | C29: 0.8439282959 | D29: 1.264938831 | E29: 1.322234811 | F29: -0.3298029027 | G29: -0.2762811966 | H29: 0.2767461413 | I29: 0.33201316
A30: 44 | B30: 0.8185611316 | C30: 0.8461447878 | D30: 1.257858613 | E30: 1.312576065 | F30: -0.322850458 | G30: -0.2694074741 | H30: 0.2701650075 | I30: 0.3262002044
A31: 46 | B31: 0.8201028333 | C31: 0.848780158 | D31: 1.24855557 | E31: 1.303453317 | F31: -0.3155181383 | G31: -0.2638769514 | H31: 0.2660073386 | I31: 0.3209460786
A32: 48 | B32: 0.8236150155 | C32: 0.8517981113 | D32: 1.242106 | E32: 1.294060427 | F32: -0.3097629749 | G32: -0.2599345704 | H32: 0.2578447427 | I32: 0.310943371
A33: 50 | B33: 0.8266420634 | C33: 0.8535313662 | D33: 1.237686937 | E33: 1.286810803 | F33: -0.3011019114 | G33: -0.2512317 | H33: 0.2519340055 | I33: 0.3037190941
A34: 52 | B34: 0.8307484132 | C34: 0.8566707748 | D34: 1.23044487 | E34: 1.278624882 | F34: -0.2951530551 | G34: -0.246290272 | H34: 0.2476398934 | I34: 0.2990877722
A35: 54 | B35: 0.8307095238 | C35: 0.8576344754 | D35: 1.22570338 | E35: 1.272990112 | F35: -0.2922621428 | G35: -0.2437451309 | H35: 0.2449896179 | I35: 0.2940890185
A36: 56 | B36: 0.8349212163 | C36: 0.861274672 | D36: 1.218960214 | E36: 1.265126052 | F36: -0.284684111 | G36: -0.2379985194 | H36: 0.2374468345 | I36: 0.2854549688
A37: 58 | B37: 0.8372108721 | C37: 0.862550485 | D37: 1.214758701 | E37: 1.259725927 | F37: -0.2772629918 | G37: -0.2326175425 | H37: 0.2352176292 | I37: 0.2817774192
A38: 60 | B38: 0.8373489627 | C38: 0.862951525 | D38: 1.211751813 | E38: 1.25633019 | F38: -0.2755553784 | G38: -0.23087078 | H38: 0.2304086671 | I38: 0.2779433008
A39: 62 | B39: 0.8411444203 | C39: 0.8666239444 | D39: 1.205526617 | E39: 1.249212437 | F39: -0.2678352436 | G39: -0.2243291636 | H39: 0.2252883003 | I39: 0.2719864902
A40: 64 | B40: 0.8429939962 | C40: 0.8677099257 | D40: 1.200937192 | E40: 1.243265601 | F40: -0.2633691587 | G40: -0.2214742664 | H40: 0.2229650592 | I40: 0.2698617636
A41: 66 | B41: 0.8457222355 | C41: 0.8692085897 | D41: 1.197891602 | E41: 1.239187951 | F41: -0.2607151801 | G41: -0.2191211069 | H41: 0.2189423142 | I41: 0.2646364086
A42: 68 | B42: 0.8477424243 | C42: 0.871333428 | D42: 1.195284334 | E42: 1.235320279 | F42: -0.2542149502 | G42: -0.2136718506 | H42: 0.215634889 | I42: 0.2586640069
A43: 70 | B43: 0.8485435839 | C43: 0.8722448633 | D43: 1.191770972 | E43: 1.23101264 | F43: -0.2531081968 | G43: -0.2142026055 | H43: 0.2115623549 | I43: 0.2552814246
A44: 72 | B44: 0.8513663941 | C44: 0.874351785 | D44: 1.186931378 | E44: 1.224473683 | F44: -0.2477577755 | G44: -0.2087431991 | H44: 0.2074926898 | I44: 0.2492377692
A45: 74 | B45: 0.8525845071 | C45: 0.875058821 | D45: 1.183130866 | E45: 1.221920627 | F45: -0.2434024963 | G45: -0.2054890788 | H45: 0.2068071981 | I45: 0.2480017174
A46: 76 | B46: 0.8546813448 | C46: 0.87752874 | D46: 1.181406118 | E46: 1.218370834 | F46: -0.2422593418 | G46: -0.2029775597 | H46: 0.2033461894 | I46: 0.2446779055
A47: 78 | B47: 0.8551425268 | C47: 0.8775247679 | D47: 1.178024209 | E47: 1.21383929 | F47: -0.2369874686 | G47: -0.1990972797 | H47: 0.2009097923 | I47: 0.2426171772
A48: 80 | B48: 0.8572911269 | C48: 0.879762241 | D48: 1.17677025 | E48: 1.213770051 | F48: -0.2359469631 | G48: -0.1986075788 | H48: 0.1985568378 | I48: 0.2380406698
A49: 85 | B49: 0.8605477214 | C49: 0.8827204973 | D49: 1.16973006 | E49: 1.205070259 | F49: -0.2255236666 | G49: -0.1900389572 | H49: 0.1918400952 | I49: 0.2298792201
A50: 90 | B50: 0.8645344407 | C50: 0.8856745453 | D50: 1.16368889 | E50: 1.196836795 | F50: -0.2217620675 | G50: -0.1861739745 | H50: 0.1854384036 | I50: 0.2225686891
A51: 95 | B51: 0.866944418 | C51: 0.8880066946 | D51: 1.15769744 | E51: 1.189921025 | F51: -0.2151138977 | G51: -0.1799841859 | H51: 0.1811097199 | I51: 0.217277087
A52: 100 | B52: 0.8702762245 | C52: 0.8904638672 | D52: 1.153092378 | E52: 1.184286727 | F52: -0.2084334831 | G52: -0.1760280791 | H52: 0.1763616775 | I52: 0.2117800102
A53: 110 | B53: 0.8756907904 | C53: 0.8945432145 | D53: 1.145396583 | E53: 1.174921425 | F53: -0.2001950604 | G53: -0.1680199973 | H53: 0.1683652744 | I53: 0.2027727132
A54: 120 | B54: 0.8801514628 | C54: 0.8984672471 | D54: 1.137427786 | E54: 1.165080518 | F54: -0.1894044055 | G54: -0.1587837203 | H54: 0.1593139802 | I54: 0.19069917
A55: 0

Sheet ワイブルプロット (hidden)
A1: n= | B1: =最尤法!C4 -> 20
A2: m= | B2: =最尤法!I14 -> 19.97242997 | E2: 0.001 | F2: =G2/$B$2+LN($B$3) -> 4.724374824 | G2: =LN(LN(1/(1-E2))) -> -6.907255071 | I2: 0.001 | J2: =LN(10) -> 2.302585093 | K2: =LN(LN(1/(1-I2))) -> -6.907255071
A3: β＝ | B3: =最尤法!I15 -> 159.2084449 | E3: 0.999 | F3: =G3/$B$2+LN($B$3) -> 5.166979946 | G3: 1.932644734 | I3: 0.001 | J3: =LN(10000) -> 9.210340372 | K3: -6.907255071
A4: σi | C4: i | D4: σi | E4: Fi | F4: lnσ | G4: lnln(1-F)^-1
A5: =最尤法!B10 -> 157 | C5: 1 | D5: =_xlfn._xlws.SORT(A5:A34,1,1,FALSE) -> 0 | E5: =(C5-0.3)/($B$1+0.4) -> 0.03431372549 | F5: =LN(D5) ->  | G5: =LN(LN(1/(1-E5))) -> -3.354802509 | I5: 0.005 | J5: =J2 -> 2.302585093 | K5: =LN(LN(1/(1-I5))) -> -5.295812143
A6: =最尤法!B11 -> 170 | C6: 2 | D6: 0 | E6: =(C6-0.3)/($B$1+0.4) -> 0.08333333333 | F6: =LN(D6) ->  | G6: =LN(LN(1/(1-E6))) -> -2.441716399 | I6: =I5 -> 0.005 | J6: =J3 -> 9.210340372 | K6: -5.295812143
A7: =最尤法!B12 -> 152 | C7: 3 | D7: 0 | E7: 0.1323529412 | G7: -1.952137671
A8: =最尤法!B13 -> 150 | C8: 4 | D8: 0 | E8: 0.181372549 | G8: -1.608807204 | I8: 0.01 | J8: =J5 -> 2.302585093 | K8: =LN(LN(1/(1-I8))) -> -4.600149227
A9: =最尤法!B14 -> 166 | C9: 5 | D9: 0 | E9: 0.2303921569 | G9: -1.339891087 | I9: =I8 -> 0.01 | J9: =J6 -> 9.210340372 | K9: -4.600149227
A10: =最尤法!B15 -> 155 | C10: 6 | D10: 0 | E10: 0.2794117647 | G10: -1.115695152
A11: =最尤法!B16 -> 161 | C11: 7 | D11: 0 | E11: 0.3284313725 | G11: -0.9209539176 | I11: 0.05 | J11: =J8 -> 2.302585093 | K11: =LN(LN(1/(1-I11))) -> -2.970195249
A12: =最尤法!B17 -> 137 | C12: 8 | D12: 0 | E12: 0.3774509804 | G12: -0.7466895129 | I12: =I11 -> 0.05 | J12: =J9 -> 9.210340372 | K12: -2.970195249
A13: =最尤法!B18 -> 145 | C13: 9 | D13: 0 | E13: 0.4264705882 | G13: -0.5870840055
A14: =最尤法!B19 -> 154 | C14: 10 | D14: 0 | E14: 0.4754901961 | G14: -0.4380536541 | I14: 0.1 | J14: =J11 -> 2.302585093 | K14: =LN(LN(1/(1-I14))) -> -2.250367327
A15: =最尤法!B20 -> 160 | C15: 11 | D15: 137 | E15: 0.5245098039 | F15: 4.919980926 | G15: -0.296508894 | I15: =I14 -> 0.1 | J15: =J12 -> 9.210340372 | K15: =LN(LN(1/(1-I15))) -> -2.250367327
A16: =最尤法!B21 -> 165 | C16: 12 | D16: 145 | E16: 0.5735294118 | F16: 4.976733742 | G16: -0.1599201033
A17: =最尤法!B22 -> 150 | C17: 13 | D17: 146 | E17: 0.6225490196 | F17: 4.983606622 | G17: -0.02602105829 | I17: 0.5 | J17: =J14 -> 2.302585093 | K17: =LN(LN(1/(1-I17))) -> -0.3665129206
A18: =最尤法!B23 -> 166 | C18: 14 | D18: 148 | E18: 0.6715686275 | F18: 4.997212274 | G18: 0.1074429828 | I18: =I17 -> 0.5 | J18: =J15 -> 9.210340372 | K18: =LN(LN(1/(1-I18))) -> -0.3665129206
A19: =最尤法!B24 -> 153 | C19: 15 | D19: 150 | E19: 0.7205882353 | F19: 5.010635294 | G19: 0.2430000799
A20: =最尤法!B25 -> 160 | C20: 16 | D20: 150 | E20: 0.7696078431 | F20: 5.010635294 | G20: 0.3838821236 | I20: 0.9 | J20: =J17 -> 2.302585093 | K20: =LN(LN(1/(1-I20))) -> 0.8340324452
A21: =最尤法!B26 -> 146 | C21: 17 | D21: 152 | E21: 0.818627451 | F21: 5.023880521 | G21: 0.5348558206 | I21: =I20 -> 0.9 | J21: =J18 -> 9.210340372 | K21: =LN(LN(1/(1-I21))) -> 0.8340324452
A22: =最尤法!B27 -> 164 | C22: 18 | D22: 153 | E22: 0.8676470588 | F22: 5.030437921 | G22: 0.7042271345
A23: =最尤法!B28 -> 153 | C23: 19 | D23: 153 | E23: 0.9166666667 | F23: 5.030437921 | G23: 0.9102350934 | I23: 0.99 | J23: =J20 -> 2.302585093 | K23: =LN(LN(1/(1-I23))) -> 1.527179626
A24: =最尤法!B29 -> 148 | C24: 20 | D24: 154 | E24: 0.9656862745 | F24: 5.036952602 | G24: 1.21556827 | I24: =I23 -> 0.99 | J24: =J21 -> 9.210340372 | K24: =LN(LN(1/(1-I24))) -> 1.527179626
A25: =最尤法!B30 -> 0 | C25: 21 | D25: 155 | E25: 1.014705882 | F25: 5.043425117
A26: =最尤法!B31 -> 0 | C26: 22 | D26: 157 | E26: 1.06372549 | F26: 5.056245805 | I26: 0.999 | J26: =J23 -> 2.302585093 | K26: =LN(LN(1/(1-I26))) -> 1.932644734
A27: =最尤法!B32 -> 0 | C27: 23 | D27: 160 | E27: 1.112745098 | F27: 5.075173815 | I27: =I26 -> 0.999 | J27: =J24 -> 9.210340372 | K27: =LN(LN(1/(1-I27))) -> 1.932644734
A28: =最尤法!B33 -> 0 | C28: 24 | D28: 160 | E28: 1.161764706 | F28: 5.075173815
A29: =最尤法!B34 -> 0 | C29: 25 | D29: 161 | E29: 1.210784314 | F29: 5.081404365 | I29: 10 | J29: =LN(I29) -> 2.302585093 | K29: -7
A30: =最尤法!B35 -> 0 | C30: 26 | D30: 164 | E30: 1.259803922 | F30: 5.099866428 | J30: =J29 -> 2.302585093 | K30: 2
A31: =最尤法!B36 -> 0 | C31: 27 | D31: 165 | E31: 1.308823529 | F31: 5.105945474
A32: =最尤法!B37 -> 0 | C32: 28 | D32: 166 | E32: 1.357843137 | F32: 5.111987788 | I32: 50 | J32: =LN(I32) -> 3.912023005 | K32: -7
A33: =最尤法!B38 -> 0 | C33: 29 | D33: 166 | E33: 1.406862745 | F33: 5.111987788 | J33: =J32 -> 3.912023005 | K33: 2
A34: =最尤法!B39 -> 0 | C34: 30 | D34: 170 | E34: 1.455882353 | F34: 5.135798437
I35: 100 | J35: =LN(I35) -> 4.605170186 | K35: -7
J36: =J35 -> 4.605170186 | K36: 2
I38: 500 | J38: =LN(I38) -> 6.214608098 | K38: -7
J39: =J38 -> 6.214608098 | K39: 2
I41: 1000 | J41: =LN(I41) -> 6.907755279 | K41: -7
J42: =J41 -> 6.907755279 | K42: 2
I44: 5000 | J44: =LN(I44) -> 8.517193191 | K44: -7
J45: =J44 -> 8.517193191 | K45: 2
I47: 10000 | J47: =LN(I47) -> 9.210340372 | K47: -7
J48: =J47 -> 9.210340372 | K48: 2
